[Event "*** Titled Tuesday Blitz"]
[Site "Chess.com"]
[Date "2019.05.07"]
[Round "8"]
[White "Alexander_Moskalenko"]
[Black "RegZryt"]
[Result "1/2-1/2"]
[WhiteElo "2866"]
[BlackElo "2544"]
[TimeControl "180+2"]
[EndTime "14:53:29 PDT"]
[Termination "Game drawn by agreement"]

1. e4 {[%clk 0:03:01.9]} 1... c5 {[%clk 0:03:00.5]} 2. Nf3 {[%clk 0:03:02.3]}
2... e6 {[%clk 0:03:01.8]} 3. d4 {[%clk 0:03:03.6]} 3... cxd4 {[%clk 0:03:03.7]}
4. Nxd4 {[%clk 0:03:05.4]} 4... Nf6 {[%clk 0:03:05.2]} 5. Nc3 {[%clk 0:03:03.3]}
5... Nc6 {[%clk 0:03:06.8]} 6. Ndb5 {[%clk 0:03:02.8]} 6... Bc5 {[%clk
0:03:03.3]} 7. Bf4 {[%clk 0:02:49.7]} 7... O-O {[%clk 0:03:04]} 8. Bc7 {[%clk
0:02:49.2]} 8... Qe7 {[%clk 0:03:04.7]} 9. Bd6 {[%clk 0:02:50.7]} 9... Bxd6
{[%clk 0:03:05.1]} 10. Qxd6 {[%clk 0:02:52.6]} 10... Qxd6 {[%clk 0:03:06]} 11.
Nxd6 {[%clk 0:02:53]} 11... Ne8 {[%clk 0:03:07.9]} 12. Nxe8 {[%clk 0:02:35.2]}
12... Rxe8 {[%clk 0:03:07.9]} 13. Nb5 {[%clk 0:02:37.1]} 13... d5 {[%clk
0:03:07.5]} 14. Nc7 {[%clk 0:02:36.3]} 14... Bd7 {[%clk 0:03:06.5]} 15. Nxa8
{[%clk 0:02:34.4]} 15... Rxa8 {[%clk 0:03:07]} 16. exd5 {[%clk 0:02:36.1]} 16...
exd5 {[%clk 0:03:08.8]} 17. O-O-O {[%clk 0:02:37.6]} 17... Be6 {[%clk
0:03:09.7]} 18. Bd3 {[%clk 0:02:36.2]} 18... a5 {[%clk 0:03:03.3]} 19. a3 {[%clk
0:02:36.7]} 19... Rb8 {[%clk 0:03:03.4]} 20. Bb5 {[%clk 0:02:37.4]} 20... Na7
{[%clk 0:03:04]} 21. Be2 {[%clk 0:02:38.9]} 21... b5 {[%clk 0:03:05.3]} 22. Bf3
{[%clk 0:02:40.5]} 22... Rd8 {[%clk 0:03:02.3]} 23. Rhe1 {[%clk 0:02:42]} 23...
Kf8 {[%clk 0:03:01.3]} 24. Rd2 {[%clk 0:02:39.8]} 24... Nc6 {[%clk 0:03:02.3]}
25. Red1 {[%clk 0:02:40.2]} 25... Ne7 {[%clk 0:03:03.3]} 26. b3 {[%clk 0:02:36]}
26... g6 {[%clk 0:03:01.3]} 27. Kb2 {[%clk 0:02:35.9]} 27... h5 {[%clk 0:03:02]}
28. h4 {[%clk 0:02:33.7]} 28... Kg7 {[%clk 0:02:58.4]} 29. g3 {[%clk 0:02:34.9]}
29... Kf6 {[%clk 0:02:57]} 30. c3 {[%clk 0:02:33.4]} 30... Ke5 {[%clk
0:02:57.6]} 31. Re1+ {[%clk 0:02:31.6]} 31... Kf6 {[%clk 0:02:58.6]} 32. b4
{[%clk 0:02:28]} 32... a4 {[%clk 0:02:57]} 33. Be2 {[%clk 0:02:22.4]} 33... Rb8
{[%clk 0:02:57.1]} 34. Bd3 {[%clk 0:02:23.9]} 34... Nc6 {[%clk 0:02:54.4]} 35.
f4 {[%clk 0:02:24.5]} 35... Ne7 {[%clk 0:02:55.4]} 36. Re3 {[%clk 0:02:20.5]}
36... Rb6 {[%clk 0:02:55.2]} 37. Kc2 {[%clk 0:02:12.6]} 37... Rb8 {[%clk
0:02:46.1]} 38. Kd1 {[%clk 0:02:13.5]} 38... Rb6 {[%clk 0:02:39.3]} 39. Ke1
{[%clk 0:02:14.1]} 39... Rb8 {[%clk 0:02:40.2]} 40. Kf2 {[%clk 0:02:12.6]} 40...
Rb6 {[%clk 0:02:41.1]} 41. Re5 {[%clk 0:02:09.5]} 41... Nc6 {[%clk 0:02:32.9]}
42. Re1 {[%clk 0:02:07.9]} 42... Ne7 {[%clk 0:02:32.3]} 43. Red1 {[%clk
0:02:08.2]} 43... Rb8 {[%clk 0:02:29.9]} 44. Be2 {[%clk 0:02:09.2]} 44... Rb6
{[%clk 0:02:28.1]} 45. Bf3 {[%clk 0:02:05.4]} 45... Rd6 {[%clk 0:02:28.9]} 46.
Rd3 {[%clk 0:02:00.2]} 46... Rd8 {[%clk 0:02:29.1]} 47. R1d2 {[%clk 0:01:56.5]}
47... Rd6 {[%clk 0:02:29.5]} 48. Rd4 {[%clk 0:01:55.5]} 48... Rc6 {[%clk
0:02:24.6]} 49. R4d3 {[%clk 0:01:42.3]} 49... Rc7 {[%clk 0:02:20]} 50. Ke1
{[%clk 0:01:42.6]} 50... Rc8 {[%clk 0:02:17]} 51. Kd1 {[%clk 0:01:43.5]} 51...
Rc7 {[%clk 0:02:17.7]} 52. Kc1 {[%clk 0:01:44.8]} 52... Rc8 {[%clk 0:02:18.2]}
53. Kb2 {[%clk 0:01:46]} 53... Rd8 {[%clk 0:02:19.5]} 54. Bg2 {[%clk 0:01:43]}
54... Rd6 {[%clk 0:02:18.8]} 55. Rd4 {[%clk 0:01:44.1]} 55... Nf5 {[%clk
0:02:19.3]} 56. R4d3 {[%clk 0:01:40.2]} 56... Ne7 {[%clk 0:02:19.9]} 57. Rf2
{[%clk 0:01:37.5]} 57... Rd8 {[%clk 0:02:16.9]} 58. Rf1 {[%clk 0:01:38.3]} 58...
Rd6 {[%clk 0:02:17.8]} 59. Rh1 {[%clk 0:01:39.3]} 59... Rd8 {[%clk 0:02:15.3]}
60. Bh3 {[%clk 0:01:39.4]} 60... Rd6 {[%clk 0:02:16.2]} 61. Kc2 {[%clk
0:01:36.1]} 61... Rc6 {[%clk 0:02:11.2]} 62. Kd2 {[%clk 0:01:36.3]} 62... Rd6
{[%clk 0:02:11.1]} 63. Bxe6 {[%clk 0:01:37.1]} 63... fxe6 {[%clk 0:02:11.8]} 64.
Re1 {[%clk 0:01:38.4]} 64... Nf5 {[%clk 0:02:12.4]} 65. Rg1 {[%clk 0:01:37.8]}
65... Rc6 {[%clk 0:02:10.6]} 66. Ke2 {[%clk 0:01:38.4]} 66... Rc4 {[%clk
0:02:11.6]} 67. Kf3 {[%clk 0:01:38.7]} 67... Nd6 {[%clk 0:02:08.7]} 68. Rc1
{[%clk 0:01:35.7]} 68... Ne4 {[%clk 0:02:07.7]} 69. Rd4 {[%clk 0:01:35.3]} 69...
Rxc3+ {[%clk 0:02:00.4]} 70. Rxc3 {[%clk 0:01:35.8]} 70... Nxc3 {[%clk
0:02:02.3]} 71. Rd3 {[%clk 0:01:31.2]} 71... Ne4 {[%clk 0:02:03.2]} 72. Rd1
{[%clk 0:01:26.5]} 72... Nd6 {[%clk 0:02:02.3]} 73. Rd3 {[%clk 0:01:20.5]}
1/2-1/2

[Event "*** Titled Tuesday Blitz"]
[Site "Chess.com"]
[Date "2019.05.07"]
[Round "8"]
[White "2nd_life"]
[Black "checkmatequen"]
[Result "0-1"]
[WhiteElo "2423"]
[BlackElo "2234"]
[TimeControl "180+2"]
[EndTime "14:53:48 PDT"]
[Termination "checkmatequen won on time"]

1. e4 {[%clk 0:03:01.9]} 1... c5 {[%clk 0:02:58.9]} 2. Nf3 {[%clk 0:03:02.9]}
2... e6 {[%clk 0:02:59.4]} 3. c3 {[%clk 0:03:03.5]} 3... d5 {[%clk 0:02:59.5]}
4. exd5 {[%clk 0:03:04.8]} 4... Qxd5 {[%clk 0:03:01.4]} 5. d4 {[%clk 0:03:06.1]}
5... Nf6 {[%clk 0:02:57.9]} 6. Bd3 {[%clk 0:03:06.4]} 6... Nc6 {[%clk
0:02:56.9]} 7. O-O {[%clk 0:03:06.2]} 7... cxd4 {[%clk 0:02:57]} 8. cxd4 {[%clk
0:03:06.3]} 8... Be7 {[%clk 0:02:58.1]} 9. Nc3 {[%clk 0:03:07.2]} 9... Qd6
{[%clk 0:02:53.6]} 10. a3 {[%clk 0:03:08.2]} 10... O-O {[%clk 0:02:54.1]} 11.
Bc2 {[%clk 0:03:08.9]} 11... a6 {[%clk 0:02:53.8]} 12. Qd3 {[%clk 0:03:09.2]}
12... g6 {[%clk 0:02:54]} 13. Bh6 {[%clk 0:03:06.3]} 13... Rd8 {[%clk
0:02:54.9]} 14. Rad1 {[%clk 0:03:06.5]} 14... b5 {[%clk 0:02:39.5]} 15. Ne5
{[%clk 0:02:26.9]} 15... Bb7 {[%clk 0:02:33.3]} 16. Bf4 {[%clk 0:02:22]} 16...
Nxe5 {[%clk 0:02:23.6]} 17. Bxe5 {[%clk 0:02:05.2]} 17... Qc6 {[%clk 0:02:20.9]}
18. Qh3 {[%clk 0:02:05.1]} 18... Nh5 {[%clk 0:01:55.4]} 19. Be4 {[%clk
0:01:42.1]} 19... Qd7 {[%clk 0:01:52.2]} 20. d5 {[%clk 0:01:30.8]} 20... exd5
{[%clk 0:01:44.4]} 21. Qxd7 {[%clk 0:01:30]} 21... Rxd7 {[%clk 0:01:46.3]} 22.
Nxd5 {[%clk 0:01:31.1]} 22... Bxd5 {[%clk 0:01:43.7]} 23. Rxd5 {[%clk
0:01:20.6]} 23... Rxd5 {[%clk 0:01:41.4]} 24. Bxd5 {[%clk 0:01:21.6]} 24... Rd8
{[%clk 0:01:42.3]} 25. Bb7 {[%clk 0:01:22.4]} 25... a5 {[%clk 0:01:41.7]} 26.
Bf3 {[%clk 0:01:02.9]} 26... Bf6 {[%clk 0:01:35.5]} 27. Bc7 {[%clk 0:01:03.5]}
27... Rd2 {[%clk 0:01:30.8]} 28. Bxa5 {[%clk 0:00:45.9]} 28... Rxb2 {[%clk
0:01:30.4]} 29. Rd1 {[%clk 0:00:46.4]} 29... Nf4 {[%clk 0:01:17.6]} 30. Kf1
{[%clk 0:00:38.5]} 30... Ne6 {[%clk 0:01:15.1]} 31. Bb4 {[%clk 0:00:22.8]} 31...
Bd4 {[%clk 0:01:09.2]} 32. Rd2 {[%clk 0:00:17.5]} 32... Rxd2 {[%clk 0:01:03.5]}
33. Bxd2 {[%clk 0:00:18]} 33... Bc5 {[%clk 0:00:51.8]} 34. Bc1 {[%clk
0:00:18.4]} 34... b4 {[%clk 0:00:46.3]} 35. a4 {[%clk 0:00:19.3]} 35... Bd4
{[%clk 0:00:44.4]} 36. a5 {[%clk 0:00:15.4]} 36... Nc5 {[%clk 0:00:43.3]} 37.
Bd1 {[%clk 0:00:04.8]} 37... b3 {[%clk 0:00:41.6]} 38. Ba3 {[%clk 0:00:05.2]}
38... Ne4 {[%clk 0:00:18.9]} 0-1

[Event "*** Titled Tuesday Blitz"]
[Site "Chess.com"]
[Date "2019.05.07"]
[Round "8"]
[White "MatthewG-p4p"]
[Black "Oleg_Papayan"]
[Result "1-0"]
[WhiteElo "2685"]
[BlackElo "2538"]
[TimeControl "180+2"]
[EndTime "14:53:50 PDT"]
[Termination "MatthewG-p4p won by resignation"]

1. Nf3 {[%clk 0:03:01.9]} 1... b6 {[%clk 0:02:59.9]} 2. b4 {[%clk 0:03:00.6]}
2... Bb7 {[%clk 0:03:00.9]} 3. Bb2 {[%clk 0:03:02.2]} 3... Nf6 {[%clk
0:03:00.1]} 4. e3 {[%clk 0:03:01.6]} 4... e6 {[%clk 0:03:01.2]} 5. a3 {[%clk
0:02:59.5]} 5... Be7 {[%clk 0:03:02.2]} 6. d4 {[%clk 0:02:59]} 6... O-O {[%clk
0:03:03.1]} 7. Bd3 {[%clk 0:03:00.4]} 7... Ne4 {[%clk 0:03:03.7]} 8. Nbd2 {[%clk
0:03:01.2]} 8... f5 {[%clk 0:03:03.8]} 9. O-O {[%clk 0:03:01.7]} 9... Nxd2
{[%clk 0:03:01.6]} 10. Nxd2 {[%clk 0:03:01]} 10... d6 {[%clk 0:02:58.7]} 11. e4
{[%clk 0:03:01]} 11... f4 {[%clk 0:02:51.1]} 12. Qg4 {[%clk 0:02:59.8]} 12...
Bc8 {[%clk 0:02:44.8]} 13. e5 {[%clk 0:02:58.2]} 13... Qe8 {[%clk 0:02:28.9]}
14. Nf3 {[%clk 0:02:49.5]} 14... d5 {[%clk 0:02:21.8]} 15. Bc1 {[%clk
0:02:38.5]} 15... Qf7 {[%clk 0:02:19.8]} 16. h4 {[%clk 0:02:24.7]} 16... c5
{[%clk 0:02:12.1]} 17. c3 {[%clk 0:02:23.8]} 17... Ba6 {[%clk 0:02:07.6]} 18. b5
{[%clk 0:02:23.1]} 18... c4 {[%clk 0:02:00.7]} 19. Bc2 {[%clk 0:01:47.2]} 19...
Bxb5 {[%clk 0:01:59.2]} 20. g3 {[%clk 0:01:48.5]} 20... Nc6 {[%clk 0:01:03.9]}
21. gxf4 {[%clk 0:01:39.3]} 21... Nd8 {[%clk 0:00:53.4]} 22. Kh2 {[%clk
0:01:30.1]} 22... Be8 {[%clk 0:00:53.5]} 23. Rg1 {[%clk 0:01:27.1]} 23... Kh8
{[%clk 0:00:53.9]} 24. Be3 {[%clk 0:01:27.4]} 24... Rg8 {[%clk 0:00:54.6]} 25.
Rg3 {[%clk 0:01:01.7]} 25... Qh5 {[%clk 0:00:54.8]} 26. Qh3 {[%clk 0:01:03.1]}
26... Rc8 {[%clk 0:00:29.9]} 27. Rag1 {[%clk 0:01:02.3]} 27... Rc6 {[%clk
0:00:27.5]} 28. Ng5 {[%clk 0:00:56]} 28... Bxg5 {[%clk 0:00:26.4]} 29. Rxg5
{[%clk 0:00:56]} 29... Qf7 {[%clk 0:00:20.6]} 30. h5 {[%clk 0:00:54.9]} 30... h6
{[%clk 0:00:18.3]} 31. Rg6 {[%clk 0:00:46.4]} 31... Qe7 {[%clk 0:00:15.1]} 32.
R6g3 {[%clk 0:00:40.7]} 32... Rc7 {[%clk 0:00:13.2]} 33. f5 {[%clk 0:00:39]}
33... exf5 {[%clk 0:00:14.6]} 34. Bxh6 {[%clk 0:00:39.9]} 34... Qf7 {[%clk
0:00:15.5]} 35. Bxg7+ {[%clk 0:00:27.5]} 35... Rxg7 {[%clk 0:00:14.1]} 36. Rxg7
{[%clk 0:00:28.4]} 36... Qxg7 {[%clk 0:00:15.6]} 37. Rxg7 {[%clk 0:00:29.1]}
37... Rxg7 {[%clk 0:00:17.5]} 38. Bxf5 {[%clk 0:00:29.5]} 38... Rg5 {[%clk
0:00:12]} 39. Bg6 {[%clk 0:00:25.2]} 39... Bf7 {[%clk 0:00:04.7]} 40. f4 {[%clk
0:00:25.7]} 40... Rxg6 {[%clk 0:00:05.2]} 41. hxg6+ {[%clk 0:00:26.7]} 1-0

[Event "*** Titled Tuesday Blitz"]
[Site "Chess.com"]
[Date "2019.05.07"]
[Round "8"]
[White "j_coca"]
[Black "zurzan"]
[Result "0-1"]
[WhiteElo "1841"]
[BlackElo "1989"]
[TimeControl "180+2"]
[EndTime "14:53:53 PDT"]
[Termination "zurzan won by resignation"]

1. f4 {[%clk 0:03:01.9]} 1... d6 {[%clk 0:03:01.9]} 2. Nf3 {[%clk 0:03:02.7]}
2... f5 {[%clk 0:03:01.4]} 3. e3 {[%clk 0:03:03.4]} 3... g6 {[%clk 0:03:02.4]}
4. d4 {[%clk 0:03:05.3]} 4... Bg7 {[%clk 0:03:03.4]} 5. c3 {[%clk 0:03:06.1]}
5... Nf6 {[%clk 0:03:04.3]} 6. Bd3 {[%clk 0:03:07]} 6... O-O {[%clk 0:03:04.8]}
7. O-O {[%clk 0:03:08.1]} 7... Nbd7 {[%clk 0:03:04.8]} 8. Bd2 {[%clk 0:03:09.4]}
8... Qe8 {[%clk 0:03:01.4]} 9. Qc2 {[%clk 0:03:08.4]} 9... e5 {[%clk 0:02:50.9]}
10. dxe5 {[%clk 0:03:00]} 10... dxe5 {[%clk 0:02:52.2]} 11. fxe5 {[%clk
0:03:01.1]} 11... Nxe5 {[%clk 0:02:52.5]} 12. Nxe5 {[%clk 0:03:02.5]} 12... Qxe5
{[%clk 0:02:53.2]} 13. Na3 {[%clk 0:03:02.2]} 13... c6 {[%clk 0:02:50.8]} 14.
Rae1 {[%clk 0:03:02.4]} 14... Be6 {[%clk 0:02:45.6]} 15. Nc4 {[%clk 0:03:02.6]}
15... Qc5 {[%clk 0:02:38.3]} 16. b4 {[%clk 0:03:01.3]} 16... Qe7 {[%clk
0:02:36.1]} 17. Ne5 {[%clk 0:02:56.9]} 17... Ng4 {[%clk 0:02:26.8]} 18. Nxg4
{[%clk 0:02:56.9]} 18... fxg4 {[%clk 0:02:27.8]} 19. c4 {[%clk 0:02:51.8]} 19...
Rxf1+ {[%clk 0:02:24.9]} 20. Bxf1 {[%clk 0:02:52.5]} 20... Rf8 {[%clk
0:02:22.6]} 21. Bc3 {[%clk 0:02:50.2]} 21... Qf7 {[%clk 0:02:20.2]} 22. Bxg7
{[%clk 0:02:48.2]} 22... Kxg7 {[%clk 0:02:19.4]} 23. a3 {[%clk 0:02:43.9]} 23...
h5 {[%clk 0:02:16.3]} 24. c5 {[%clk 0:02:44.2]} 24... h4 {[%clk 0:02:15.1]} 25.
Bd3 {[%clk 0:02:41.6]} 25... g3 {[%clk 0:02:09.6]} 26. Rf1 {[%clk 0:02:39.4]}
26... gxh2+ {[%clk 0:02:02.1]} 27. Kxh2 {[%clk 0:02:38.2]} 27... Qc7+ {[%clk
0:01:59.8]} 28. Kg1 {[%clk 0:02:39.4]} 28... Rxf1+ {[%clk 0:01:59.3]} 29. Bxf1
{[%clk 0:02:41.3]} 29... Qe5 {[%clk 0:01:46.2]} 30. e4 {[%clk 0:02:38.5]} 30...
Qd4+ {[%clk 0:01:35.5]} 31. Kh2 {[%clk 0:02:36.9]} 31... g5 {[%clk 0:01:30.1]}
32. Qd3 {[%clk 0:02:34.2]} 32... Qe5+ {[%clk 0:01:29.1]} 33. Kg1 {[%clk
0:02:34.5]} 33... g4 {[%clk 0:01:29.3]} 34. Kf2 {[%clk 0:02:34.3]} 34... Qf4+
{[%clk 0:01:26.5]} 35. Kg1 {[%clk 0:02:32.2]} 35... g3 {[%clk 0:01:23.4]} 36.
Qd4+ {[%clk 0:02:29.7]} 36... Kg6 {[%clk 0:01:09.3]} 37. Be2 {[%clk 0:02:14.2]}
37... Qc1+ {[%clk 0:01:08.7]} 38. Qd1 {[%clk 0:02:12.1]} 38... Qxd1+ {[%clk
0:01:03.6]} 39. Bxd1 {[%clk 0:02:14]} 39... Kg5 {[%clk 0:01:04.1]} 40. Kf1
{[%clk 0:02:05.1]} 40... Kf4 {[%clk 0:01:04.9]} 41. Bc2 {[%clk 0:02:05.7]} 41...
Ke3 {[%clk 0:01:05.3]} 42. Kg1 {[%clk 0:02:02.6]} 42... Kd2 {[%clk 0:01:04.8]}
43. Bb1 {[%clk 0:02:03]} 43... Kc1 {[%clk 0:01:04.1]} 44. Bd3 {[%clk 0:02:04.2]}
44... Kb2 {[%clk 0:01:04.4]} 45. b5 {[%clk 0:02:05.6]} 45... Kxa3 {[%clk
0:00:57.4]} 46. b6 {[%clk 0:01:59.5]} 46... axb6 {[%clk 0:00:57.6]} 47. cxb6
{[%clk 0:02:01.4]} 47... Kb4 {[%clk 0:00:58.2]} 48. Ba6 {[%clk 0:02:01.8]} 48...
Kc5 {[%clk 0:00:57.4]} 49. Bxb7 {[%clk 0:02:03]} 49... Kxb6 {[%clk 0:00:58.5]}
50. Ba8 {[%clk 0:02:02.8]} 50... Kc5 {[%clk 0:00:56.9]} 51. Kf1 {[%clk
0:02:02.1]} 51... Bd7 {[%clk 0:00:57.3]} 52. Ke2 {[%clk 0:02:01.4]} 52... Kd4
{[%clk 0:00:58.1]} 53. Kf3 {[%clk 0:02:02.7]} 53... c5 {[%clk 0:00:55.5]} 54.
Bd5 {[%clk 0:01:59.3]} 54... c4 {[%clk 0:00:56]} 55. Bf7 {[%clk 0:02:00.1]}
55... c3 {[%clk 0:00:55.8]} 56. Bb3 {[%clk 0:02:00.8]} 56... Bc6 {[%clk
0:00:51.2]} 57. Bc2 {[%clk 0:02:01.1]} 57... Bb7 {[%clk 0:00:49.7]} 58. Kf4
{[%clk 0:02:00.6]} 58... Bc6 {[%clk 0:00:42.8]} 59. Kf3 {[%clk 0:01:46]} 59...
Ke5 {[%clk 0:00:43.3]} 60. Ke3 {[%clk 0:01:46.8]} 60... Bb5 {[%clk 0:00:41.6]}
61. Kf3 {[%clk 0:01:45.9]} 61... Bf1 {[%clk 0:00:41.4]} 62. Kg4 {[%clk
0:01:32.2]} 62... Bxg2 {[%clk 0:00:40.2]} 63. Kxh4 {[%clk 0:01:33.5]} 63... Bxe4
{[%clk 0:00:40.3]} 64. Ba4 {[%clk 0:01:34.5]} 64... g2 {[%clk 0:00:39.6]} 0-1

[Event "*** Titled Tuesday Blitz"]
[Site "Chess.com"]
[Date "2019.05.07"]
[Round "8"]
[White "IakovUlivar"]
[Black "c63_amg"]
[Result "0-1"]
[WhiteElo "2537"]
[BlackElo "2663"]
[TimeControl "180+2"]
[EndTime "14:53:55 PDT"]
[Termination "c63_amg won on time"]

1. e4 {[%clk 0:03:01.9]} 1... c5 {[%clk 0:03:00.9]} 2. Nc3 {[%clk 0:03:02.5]}
2... e6 {[%clk 0:02:59]} 3. g3 {[%clk 0:03:03.2]} 3... d5 {[%clk 0:03:00.2]} 4.
Bg2 {[%clk 0:03:03.4]} 4... Nf6 {[%clk 0:03:00.5]} 5. d3 {[%clk 0:02:59.6]} 5...
Be7 {[%clk 0:02:46.9]} 6. Nf3 {[%clk 0:02:49.6]} 6... dxe4 {[%clk 0:02:37]} 7.
dxe4 {[%clk 0:02:42.9]} 7... Qxd1+ {[%clk 0:02:36.7]} 8. Kxd1 {[%clk 0:02:44.8]}
8... Nc6 {[%clk 0:02:37.7]} 9. Ne1 {[%clk 0:02:04]} 9... O-O {[%clk 0:02:36.4]}
10. Bf4 {[%clk 0:01:46.9]} 10... Rd8+ {[%clk 0:02:33.6]} 11. Kc1 {[%clk
0:01:46.3]} 11... Ng4 {[%clk 0:02:13.8]} 12. f3 {[%clk 0:01:40.8]} 12... Nge5
{[%clk 0:02:13.8]} 13. Bf1 {[%clk 0:00:59.8]} 13... b6 {[%clk 0:02:01.7]} 14.
Be2 {[%clk 0:00:53.1]} 14... Bb7 {[%clk 0:02:01.2]} 15. Nd3 {[%clk 0:00:45.3]}
15... Bf6 {[%clk 0:02:02.2]} 16. Nxe5 {[%clk 0:00:42.8]} 16... Nxe5 {[%clk
0:02:01.1]} 17. Rd1 {[%clk 0:00:36.7]} 17... Nc6 {[%clk 0:01:41.4]} 18. Nb5
{[%clk 0:00:31.1]} 18... Rxd1+ {[%clk 0:01:31.7]} 19. Bxd1 {[%clk 0:00:29.2]}
19... Rd8 {[%clk 0:01:29.3]} 20. c3 {[%clk 0:00:28.5]} 20... Ba6 {[%clk
0:01:21.7]} 21. Be2 {[%clk 0:00:24.5]} 21... g5 {[%clk 0:01:12.9]} 22. Be3
{[%clk 0:00:17.6]} 22... Ne5 {[%clk 0:01:14.3]} 23. Kc2 {[%clk 0:00:04.7]} 23...
Nxf3 {[%clk 0:01:03.3]} 24. Bxf3 {[%clk 0:00:06.6]} 24... Bxb5 {[%clk
0:01:03.8]} 25. Rd1 {[%clk 0:00:08.1]} 25... Rxd1 {[%clk 0:00:58.2]} 26. Kxd1
{[%clk 0:00:09.2]} 26... Bc6 {[%clk 0:00:48.8]} 27. Ke2 {[%clk 0:00:08.4]} 27...
Kg7 {[%clk 0:00:44.7]} 28. Bd2 {[%clk 0:00:08.5]} 28... Kg6 {[%clk 0:00:38.9]}
29. g4 {[%clk 0:00:09.1]} 29... Be5 {[%clk 0:00:38]} 30. h3 {[%clk 0:00:10.4]}
30... Bf4 {[%clk 0:00:30.6]} 31. Be1 {[%clk 0:00:09.8]} 31... Kf6 {[%clk
0:00:31.1]} 32. c4 {[%clk 0:00:07.5]} 32... Be5 {[%clk 0:00:27.4]} 33. b3 {[%clk
0:00:08.9]} 33... h6 {[%clk 0:00:26.2]} 34. Kd3 {[%clk 0:00:09.9]} 34... Ke7
{[%clk 0:00:25.5]} 35. Bd2 {[%clk 0:00:09.9]} 35... f5 {[%clk 0:00:26.6]} 36.
Be1 {[%clk 0:00:04.6]} 36... Kf6 {[%clk 0:00:27.4]} 37. Bd2 {[%clk 0:00:04.8]}
37... Be8 {[%clk 0:00:19.5]} 38. exf5 {[%clk 0:00:04.6]} 38... exf5 {[%clk
0:00:20.4]} 39. gxf5 {[%clk 0:00:03.1]} 39... Bd7 {[%clk 0:00:20.7]} 0-1

[Event "*** Titled Tuesday Blitz"]
[Site "Chess.com"]
[Date "2019.05.07"]
[Round "8"]
[White "MFguimaraes"]
[Black "Jbd735"]
[Result "1-0"]
[WhiteElo "2335"]
[BlackElo "2460"]
[TimeControl "180+2"]
[EndTime "14:54:00 PDT"]
[Termination "MFguimaraes won by resignation"]

1. e4 {[%clk 0:03:01.9]} 1... e5 {[%clk 0:03:00.6]} 2. Nf3 {[%clk 0:03:01.8]}
2... Nc6 {[%clk 0:03:01.6]} 3. Bc4 {[%clk 0:03:02.4]} 3... Bc5 {[%clk
0:03:01.6]} 4. c3 {[%clk 0:03:01.1]} 4... Nf6 {[%clk 0:03:02.5]} 5. d4 {[%clk
0:03:02.3]} 5... exd4 {[%clk 0:03:02.6]} 6. e5 {[%clk 0:03:03.8]} 6... d5 {[%clk
0:03:00.1]} 7. Be2 {[%clk 0:03:04.9]} 7... Ne4 {[%clk 0:02:56.5]} 8. cxd4 {[%clk
0:03:06.1]} 8... Bb4+ {[%clk 0:02:56.6]} 9. Nbd2 {[%clk 0:03:07.1]} 9... Bg4
{[%clk 0:02:40.7]} 10. O-O {[%clk 0:03:07.1]} 10... Nxd2 {[%clk 0:02:36]} 11.
Bxd2 {[%clk 0:03:05.9]} 11... Bxd2 {[%clk 0:02:34.7]} 12. Qxd2 {[%clk
0:03:05.3]} 12... O-O {[%clk 0:02:35.1]} 13. b4 {[%clk 0:03:02.7]} 13... a6
{[%clk 0:02:31.1]} 14. a4 {[%clk 0:03:01.9]} 14... Qd7 {[%clk 0:02:22.3]} 15. b5
{[%clk 0:02:55.9]} 15... axb5 {[%clk 0:02:22.5]} 16. axb5 {[%clk 0:02:53.3]}
16... Ne7 {[%clk 0:02:22.5]} 17. Ng5 {[%clk 0:02:51]} 17... Bxe2 {[%clk
0:02:17.8]} 18. Qxe2 {[%clk 0:02:52.9]} 18... Qf5 {[%clk 0:01:43.9]} 19. f4
{[%clk 0:02:45.2]} 19... Ng6 {[%clk 0:01:37.8]} 20. g3 {[%clk 0:02:25.7]} 20...
h6 {[%clk 0:01:15.1]} 21. Nf3 {[%clk 0:02:24.3]} 21... Rfe8 {[%clk 0:00:57.2]}
22. Qb2 {[%clk 0:02:13.5]} 22... Rxa1 {[%clk 0:00:53.5]} 23. Rxa1 {[%clk
0:02:11.1]} 23... Qg4 {[%clk 0:00:46.3]} 24. Kf2 {[%clk 0:02:11]} 24... h5
{[%clk 0:00:43.8]} 25. Qe2 {[%clk 0:02:02.8]} 25... f6 {[%clk 0:00:36.4]} 26.
Nh4 {[%clk 0:01:53.5]} 26... Nxh4 {[%clk 0:00:21.3]} 27. Qxg4 {[%clk 0:01:52.4]}
27... hxg4 {[%clk 0:00:23.2]} 28. gxh4 {[%clk 0:01:53.5]} 28... f5 {[%clk
0:00:20.8]} 29. Ra7 {[%clk 0:01:47.9]} 29... Rb8 {[%clk 0:00:20.7]} 30. Kg3
{[%clk 0:01:38.9]} 30... Kf7 {[%clk 0:00:20.9]} 31. h5 {[%clk 0:01:39.6]} 31...
Ke6 {[%clk 0:00:19.5]} 32. Kh4 {[%clk 0:01:39.5]} 32... Kd7 {[%clk 0:00:10.8]}
33. Kg5 {[%clk 0:01:40]} 33... Ke6 {[%clk 0:00:11]} 34. Kg6 {[%clk 0:01:40.3]}
34... Rh8 {[%clk 0:00:09.4]} 35. Rxb7 {[%clk 0:01:39.5]} 35... Rh6+ {[%clk
0:00:10.1]} 36. Kg5 {[%clk 0:01:40]} 36... Kd7 {[%clk 0:00:11.2]} 37. Kxf5
{[%clk 0:01:34.9]} 37... Rxh5+ {[%clk 0:00:11.9]} 38. Kxg4 {[%clk 0:01:36.2]}
38... Rxh2 {[%clk 0:00:12.1]} 39. b6 {[%clk 0:01:37.6]} 39... Kc6 {[%clk
0:00:12.7]} 40. Rxc7+ {[%clk 0:01:34.9]} 40... Kxb6 {[%clk 0:00:13.9]} 41. Rc5
{[%clk 0:01:36.2]} 41... Re2 {[%clk 0:00:03.5]} 42. Rxd5 {[%clk 0:01:34.6]}
42... Kc6 {[%clk 0:00:03.9]} 43. Rd6+ {[%clk 0:01:33.9]} 43... Kc7 {[%clk
0:00:04.9]} 44. Kf5 {[%clk 0:01:34.4]} 44... Rd2 {[%clk 0:00:03.5]} 45. Kg6
{[%clk 0:01:34.5]} 45... Rg2+ {[%clk 0:00:02.5]} 46. Kf7 {[%clk 0:01:35.6]}
46... Rf2 {[%clk 0:00:03.7]} 47. Kxg7 {[%clk 0:01:35.9]} 47... Rxf4 {[%clk
0:00:04.9]} 48. Kg6 {[%clk 0:01:35.7]} 48... Rf2 {[%clk 0:00:05.6]} 49. Rf6
{[%clk 0:01:33.9]} 49... Rd2 {[%clk 0:00:06.2]} 50. Rf7+ {[%clk 0:01:31.3]}
50... Kc6 {[%clk 0:00:06.6]} 51. Rf4 {[%clk 0:01:28.6]} 51... Kd5 {[%clk
0:00:07.4]} 52. Kf7 {[%clk 0:01:28.3]} 52... Re2 {[%clk 0:00:08.2]} 53. Rf1
{[%clk 0:01:14.4]} 53... Re3 {[%clk 0:00:08.2]} 54. Rf6 {[%clk 0:01:14.5]} 54...
Kxd4 {[%clk 0:00:07.6]} 55. e6 {[%clk 0:01:15.6]} 55... Kd5 {[%clk 0:00:07]} 56.
e7 {[%clk 0:01:16.9]} 1-0